bitfinex/quotes_ETHUSD_20250219
["timestamp","ask_amount","ask_price","bid_price","bid_amount"]
[1739981196364,4.51227,2705.3,2704.7,3.69724]
[1739981196565,0.8158,2705.3,2704.8,3.69706]
[1739981196875,0.7696,2705.7,2705.3,3.69635]
[1739981197058,0.7696,2705.9,2705.3,3.69635]
[1739981197255,0.7696,2705.9,2705.4,3.69621]
[1739981197693,4.46524,2705.9,2705.3,3.69644]
[1739981197896,5.281313,2705.9,2705.3,3.69644]
[1739981198271,5.281313,2705.9,2705.2,4.52947]
[1739981198272,3.69578,2705.8,2705.2,4.52947]
[1739981198474,3.69578,2705.8,2705.2,4.52941]
[1739981198673,3.69578,2705.8,2705.2,8.2259]
[1739981198884,1.585673,2705.9,2705.3,3.69643]
[1739981199294,0.7696,2705.9,2705.3,0.03696151]
[1739981199495,0.7524,2706.2,2705.9,3.69559]
[1739981199697,0.7606,2706.5,2705.9,3.69559]
[1739981200209,0.06159085,2706.4,2705.8,0.8247]
[1739981200406,0.06159085,2706.4,2705.6,3.69602]
[1739981200611,0.7685,2706.0,2705.4,6.474]
[1739981200783,1.214888,2706.0,2705.4,6.474]
[1739981200984,3.75710332,2705.9,2705.4,5.656]
[1739981201164,3.75710332,2705.9,2705.4,0.286]
[1739981201369,0.06145332,2705.9,2705.5,3.69604]
[1739981201669,0.06145332,2705.9,2705.7,3.69586]
[1739981202072,0.7873,2706.3,2705.7,4.32127105]
[1739981202273,0.05906022,2705.8,2705.7,3.6958]
[1739981202530,4.48239,2706.3,2705.7,3.6958]
[1739981203108,0.05932686,2706.2,2705.6,4.4937]
[1739981203270,3.75455686,2706.2,2705.7,3.69583]
[1739981204311,0.05932686,2706.2,2705.7,3.69583]
[1739981204514,0.05932686,2706.2,2706.0,3.69538]
[1739981204810,4.56887343,2706.6,2705.9,3.69562]
[1739981204999,0.05936533,2706.1,2705.8,0.449353]
[1739981205197,3.69494,2706.4,2705.8,4.145033]
[1739981205398,0.05926243,2706.0,2705.8,0.449353]
[1739981205617,3.69543,2706.1,2705.7,5.37]
[1739981205779,0.0592448,2705.9,2705.7,5.37]
[1739981206114,0.7504,2706.0,2705.7,5.37]
[1739981206315,0.05923432,2705.8,2705.7,5.37]
[1739981206486,0.7504,2706.4,2705.7,5.37]
[1739981206812,3.7548488,2706.3,2705.7,5.37]
[1739981207186,0.87976368,2706.3,2705.7,5.37]
[1739981207388,0.7735,2705.9,2705.7,5.37]
[1739981207613,0.7735,2706.2,2705.7,5.37]
[1739981207918,0.7735,2706.2,2705.7,9.06588]
[1739981208131,0.0597488,2706.3,2705.8,3.69575]
[1739981208414,0.0597488,2706.3,2705.8,3.69574]
[1739981208614,0.0597488,2706.3,2705.9,3.6956]
[1739981208819,0.0597488,2706.3,2705.8,4.971928]
[1739981209029,4.49386,2706.4,2705.8,4.971928]
[1739981209315,0.7989,2706.4,2705.8,4.971928]
[1739981209521,0.07441343,2706.6,2706.1,3.69528]
[1739981209710,3.76909343,2706.6,2706.0,3.69541]
[1739981210596,0.05966,2706.5,2706.0,3.69541]
[1739981210925,3.69501,2706.4,2706.0,0.9432138]
[1739981211094,0.8172,2706.3,2705.7,5.37]
[1739981211278,3.69522,2706.2,2705.7,5.37]
[1739981211481,4.57176442,2706.3,2705.7,9.06587]
[1739981211706,0.05924846,2706.1,2705.7,5.37]
[1739981211905,3.69535,2706.1,2705.7,5.37]
[1739981212222,0.05914555,2706.0,2705.7,9.06584]
[1739981212391,4.51237,2706.3,2705.7,9.06584]
[1739981212719,0.05904264,2705.9,2705.7,5.37]
[1739981212876,3.69523,2706.2,2705.7,5.37]
[1739981213082,0.05893971,2705.8,2705.7,5.37]
[1739981213317,3.69523,2706.2,2705.7,5.37]
[1739981213522,0.05893971,2705.8,2705.7,5.37]
[1739981213715,3.69523,2706.2,2705.7,5.37]
[1739981213893,0.05893971,2705.8,2705.7,5.37]
[1739981214093,4.5980502,2706.2,2705.7,5.37]
[1739981214094,3.69523,2706.2,2705.7,5.37]
[1739981214293,0.05899542,2705.8,2705.7,5.37]
[1739981214501,4.51234,2706.3,2705.7,9.06581]
[1739981214799,3.6953,2706.2,2705.7,5.37]
[1739981215000,3.75476274,2706.2,2705.7,5.37]
[1739981215400,0.05946274,2706.2,2705.7,9.06589]
[1739981215604,0.05946274,2706.2,2705.7,9.972389]
[1739981216222,3.69509,2706.3,2705.7,13.668199]
[1739981216384,0.05958815,2706.1,2705.7,6.276589]
[1739981216587,7.45020103,2706.2,2705.7,6.276589]
[1739981216808,0.05948525,2706.0,2705.7,5.37]
[1739981217027,3.69522,2706.2,2705.7,5.37]
[1739981217235,0.0599928,2705.9,2705.7,5.37]
[1739981217527,3.69522,2706.2,2705.7,5.37]
[1739981217697,0.05988988,2705.8,2705.7,5.37]
[1739981217897,3.69503,2706.4,2705.7,9.58160484]
[1739981218112,3.69501,2706.4,2705.8,3.6957]
[1739981218316,0.7613,2706.5,2705.9,3.69551]
[1739981218317,0.06040438,2706.3,2705.9,3.69551]
[1739981218516,0.06040438,2706.3,2706.0,3.69543]
[1739981218717,0.7613,2706.5,2705.9,3.69551]
[1739981218933,7.39005,2706.4,2705.8,3.69575]
[1739981219187,3.69501,2706.4,2705.7,5.88580484]
[1739981219336,3.69532,2706.2,2705.7,5.37]
[1739981220108,3.69508,2706.3,2705.8,3.69576]
[1739981220509,3.69508,2706.3,2705.7,9.06589]
[1739981220833,4.45615,2706.5,2705.7,6.72777]
[1739981221133,4.45615,2706.5,2705.9,3.69556]
[1739981221329,8.15106,2706.5,2705.9,3.69556]
[1739981221530,0.06041218,2706.4,2705.9,3.69556]
[1739981221830,3.75538218,2706.4,2705.9,3.69556]
[1739981222139,0.06041218,2706.4,2706.0,3.69541]
[1739981222340,0.06041218,2706.4,2706.1,4.49165]
[1739981222495,0.06041218,2706.4,2706.3,3.69508]
[1739981222704,0.07441343,2706.6,2706.5,4.4589]
[1739981222910,0.07441343,2706.6,2706.5,0.7641]
[1739981223242,0.12826796,2706.6,2706.5,4.933404]
[1739981223630,0.07441343,2706.6,2706.5,4.933404]
[1739981225334,0.07441343,2706.6,2706.5,0.474504]
[1739981225539,0.07441343,2706.6,2706.5,3.6948]
[1739981227511,0.07441343,2706.6,2706.5,9.0648]
[1739981229327,0.07441343,2706.6,2706.5,9.8518]
[1739981229824,0.07441343,2706.6,2706.5,5.37]
[1739981230138,0.07441343,2706.6,2706.5,9.0648]
[1739981231080,0.07441343,2706.6,2706.5,5.37]
[1739981231639,0.12933145,2706.6,2706.5,9.0648]
[1739981231840,0.12933145,2706.6,2706.5,5.37]
[1739981232040,0.07441343,2706.6,2706.5,5.37]
[1739981232340,0.12933145,2706.6,2706.5,5.37]
[1739981232772,0.12933145,2706.6,2706.5,9.0648]
[1739981233158,0.07441343,2706.6,2706.5,9.0648]
[1739981233359,0.12933145,2706.6,2706.5,3.6948]
[1739981234039,0.12933145,2706.6,2706.2,5.37]
[1739981234236,0.12933145,2706.6,2706.3,3.69501]
[1739981234457,0.07441343,2706.6,2706.4,3.69492]
[1739981234653,0.05481518,2706.5,2706.4,3.69492]
[1739981234854,0.07441343,2706.6,2706.5,3.6948]
[1739981235248,0.07441343,2706.6,2706.5,4.433772]
[1739981235457,0.07441343,2706.6,2706.5,5.199972]
[1739981238872,0.07441343,2706.6,2706.5,4.461]
[1739981239070,0.07441343,2706.6,2706.5,3.6948]
[1739981239315,0.07441343,2706.6,2706.5,9.0648]
[1739981240987,0.07441343,2706.6,2706.5,5.37]
[1739981241314,0.07441343,2706.6,2706.5,9.0648]
[1739981241471,0.07441343,2706.6,2706.5,11.141161]
[1739981242919,0.07441343,2706.6,2706.5,9.0648]
[1739981243279,0.12537348,2706.6,2706.5,9.0648]
[1739981243503,0.12537348,2706.6,2706.5,5.37]
[1739981243675,0.12537348,2706.6,2706.5,9.0648]
[1739981243888,0.07441343,2706.6,2706.5,9.0648]
[1739981244105,0.12557632,2706.6,2706.5,10.340761]
[1739981244280,0.07441343,2706.6,2706.5,10.340761]
[1739981244480,0.07441343,2706.6,2706.5,9.0648]
[1739981245014,0.12557632,2706.6,2706.5,5.37]
[1739981245214,0.12557632,2706.6,2706.5,9.0648]
[1739981245391,0.07441343,2706.6,2706.5,3.6948]
[1739981245590,0.12557632,2706.6,2706.3,9.06494]
[1739981246105,0.12557632,2706.6,2706.3,9.065]
[1739981246106,0.7769,2706.5,2706.3,9.065]
[1739981246283,0.7769,2706.5,2706.3,5.37]
[1739981246633,0.7769,2706.5,2706.3,9.06507]
[1739981246801,0.05104453,2706.4,2706.3,9.06507]
[1739981247124,0.05104453,2706.4,2706.3,5.37]
[1739981248120,3.74598453,2706.4,2706.3,5.37]
[1739981248420,0.8171,2706.1,2705.6,5.37]
[1739981248724,0.8171,2705.6,2704.9,3.69689]
[1739981248954,0.8171,2705.6,2705.0,3.69677]
[1739981249076,0.04947835,2705.5,2705.0,3.69677]
[1739981249292,0.04947835,2705.5,2705.2,3.69651]
[1739981249490,0.04947835,2705.5,2705.3,3.69637]
[1739981250142,0.04947835,2705.5,2705.4,3.69631]
[1739981250852,0.8012,2705.8,2705.5,3.69615]
[1739981251154,0.8012,2705.8,2705.3,7.39273]
[1739981251457,0.8012,2705.8,2705.3,3.69636]
[1739981251657,1.25087,2705.8,2705.1,3.69663]
[1739981251808,4.94674,2705.8,2705.1,3.69663]
[1739981252156,3.69592,2705.7,2705.1,3.69663]
[1739981252646,4.94663,2705.8,2705.1,3.69663]
[1739981252851,1.25087,2705.8,2705.1,3.69663]
[1739981253053,4.50508188,2705.7,2705.1,3.69663]
[1739981253510,0.80918188,2705.7,2705.3,3.6964]
[1739981253954,0.8012,2705.8,2705.1,3.69664]
[1739981254138,3.69592,2705.7,2705.1,3.69664]
[1739981254350,3.74546,2705.7,2705.1,7.39327]
[1739981254517,0.04954,2705.7,2705.3,3.69644]
[1739981254860,4.49698,2705.8,2705.1,7.39322]
[1739981255029,0.04950652,2705.6,2705.2,3.69656]
[1739981255225,0.04950652,2705.6,2705.1,3.69659]
[1739981255426,0.7576,2705.5,2704.9,9.06691]
[1739981255632,4.45384,2705.5,2704.9,5.37]
[1739981256063,4.45384,2705.5,2704.9,9.0669]
[1739981256212,0.45033465,2705.4,2704.9,5.37]
[1739981256420,0.7993,2705.3,2704.9,5.37]
[1739981257121,0.7993,2705.3,2705.0,7.39353]
[1739981257350,0.7993,2705.3,2705.0,3.69676]
[1739981257865,0.04813213,2705.2,2705.0,3.69676]
[1739981258219,0.7993,2705.3,2705.1,3.69672]
[1739981258519,0.7908,2705.5,2705.1,3.69662]
[1739981258720,0.7908,2705.5,2705.2,3.69657]
[1739981258917,0.7908,2705.5,2705.0,3.69676]
[1739981259131,0.04950652,2705.6,2705.4,3.69624]
[1739981259366,0.04950652,2705.6,2705.4,3.69622]
[1739981259549,0.04950652,2705.6,2705.5,3.69617]
[1739981259749,0.04950652,2705.6,2705.4,3.69622]
[1739981260420,0.04950652,2705.6,2705.3,3.69633]
[1739981260665,0.04950652,2705.6,2705.1,5.37]
[1739981260845,0.8039,2705.5,2705.1,5.37]
[1739981261440,0.04806245,2705.4,2705.1,5.37]
[1739981261963,3.74437245,2705.4,2705.1,5.37]
[1739981262673,0.7528,2705.2,2705.1,5.37]
[1739981263170,0.80065654,2705.2,2704.9,3.69699]
[1739981263739,0.80065654,2705.2,2704.7,7.39433]
[1739981263740,0.7528,2705.2,2704.7,7.39433]
[1739981263941,0.04794806,2705.1,2704.7,7.39433]
[1739981264135,0.04794806,2705.1,2704.6,9.06734]
[1739981264327,0.04794806,2705.1,2704.6,3.69739]
[1739981264670,0.0478451,2705.0,2704.6,3.69739]
[1739981265030,0.0478451,2705.0,2704.7,3.69725]
[1739981265226,0.0478451,2705.0,2704.4,1.32978337]
[1739981265537,0.0478451,2705.0,2704.5,3.69753]
[1739981265725,0.8117,2705.2,2704.4,3.69765]
[1739981266066,5.27377488,2705.1,2704.5,3.69752]
[1739981266265,9.01870445,2705.1,2704.4,3.69756]
[1739981266572,0.7655,2705.0,2704.4,3.69756]
[1739981266729,0.7655,2705.0,2704.4,7.39515]
[1739981266928,0.04765609,2704.9,2704.4,3.69756]
[1739981267238,0.57517919,2704.9,2704.4,3.69756]
[1739981267652,0.57517919,2704.9,2704.2,9.06787]
[1739981267653,4.27219919,2704.9,2704.2,9.06787]
[1739981267870,0.8155,2704.8,2704.2,3.69787]
[1739981268072,4.56005964,2704.8,2704.0,4.27744935]
[1739981268274,0.86288964,2704.8,2704.0,4.27739935]
[1739981268569,0.8165,2704.5,2703.8,3.69842]
[1739981268774,0.8165,2704.5,2703.9,3.69836]
[1739981269077,0.8165,2704.5,2704.0,3.69815]
[1739981269230,0.04714915,2704.4,2704.0,3.69815]
[1739981269742,0.04714915,2704.4,2703.9,3.69827]
[1739981270071,0.7755,2704.3,2703.6,6.64805886]
[1739981270241,0.82254614,2704.3,2703.7,3.69859]
[1739981270431,0.82254614,2704.3,2703.8,3.69841]
[1739981270631,0.82254614,2704.3,2703.6,2.94932886]
[1739981270943,0.04704614,2704.3,2704.1,3.69797]
[1739981271368,0.8118,2704.6,2704.1,3.69797]
[1739981271531,0.04694312,2704.2,2704.1,7.39599]
[1739981271736,0.8118,2704.6,2704.0,0.7506]
[1739981271936,8.50532882,2705.0,2704.0,0.7506]
[1739981271937,0.7951,2704.9,2704.0,0.7506]
[1739981272249,0.04490564,2704.8,2704.7,3.6972]
[1739981272450,0.7951,2705.4,2704.7,3.6972]
[1739981272670,0.04506906,2704.8,2704.5,4.52641]
[1739981272875,0.815,2705.0,2704.6,3.69738]
[1739981273165,0.04496609,2704.7,2704.6,3.69738]
[1739981273379,0.815,2705.0,2704.5,8.22388]
[1739981273533,0.815,2705.0,2704.6,3.69739]
[1739981273736,0.04517203,2704.9,2704.6,3.69739]
[1739981274242,0.04517203,2704.9,2704.5,3.69741]
[1739981274459,0.04517203,2704.9,2704.6,3.69731]
[1739981274980,0.04517203,2704.9,2704.7,3.69719]
[1739981275541,0.04517203,2704.9,2704.8,3.69713]
[1739981275876,0.04517203,2704.9,2704.8,0.739432]
[1739981276080,0.7582,2705.2,2704.8,0.739432]
[1739981276282,0.04461721,2704.9,2704.7,3.69717]
[1739981276584,0.7582,2705.2,2704.5,6.06745]
[1739981276752,0.7715,2704.7,2704.5,2.37]
[1739981277154,0.0447725,2704.6,2704.5,2.37]
[1739981277788,0.0447725,2704.6,2704.5,6.06754]
[1739981277992,0.0447725,2704.6,2704.5,2.37]
[1739981280884,0.0447725,2704.6,2704.4,3.69755]
[1739981281384,0.0447725,2704.6,2704.5,3.69754]
[1739981281588,0.0447725,2704.6,2704.5,4.48814]
[1739981281742,0.7613,2705.0,2704.7,3.69719]
[1739981282357,0.7613,2705.0,2704.5,0.7906]
[1739981282659,5.36,2705.2,2704.8,3.69703]
[1739981282862,5.97385,2705.2,2704.8,7.39409]
[1739981283058,0.04500292,2705.1,2704.9,3.69698]
[1739981283661,0.04500292,2705.1,2705.0,3.69685]
[1739981284390,0.04500292,2705.1,2704.8,3.697]
[1739981284750,0.04500292,2705.1,2704.9,3.69691]
[1739981285149,0.04500292,2705.1,2705.0,3.69685]
[1739981285376,0.04500292,2705.1,2705.0,5.1984878]
[1739981285875,0.04500292,2705.1,2705.0,4.4223878]
[1739981286072,0.04500292,2705.1,2705.0,3.69685]
[1739981287247,0.80380652,2705.6,2705.1,3.69666]
[1739981287447,0.80380652,2705.6,2705.3,3.69644]
[1739981287696,0.80380652,2705.6,2705.5,3.69617]
[1739981287697,0.04950652,2705.6,2705.5,3.69617]
[1739981287991,0.04950652,2705.6,2705.5,3.73312449]
[1739981288291,0.04950652,2705.6,2705.5,5.63315634]
[1739981288653,0.04950652,2705.6,2705.5,8.83915634]
[1739981288880,0.04950652,2705.6,2705.5,11.80220433]
[1739981289087,0.07441343,2706.6,2705.5,11.03570433]
[1739981289276,0.07441343,2706.6,2706.5,3.6948]
[1739981289470,0.07441343,2706.6,2706.5,4.26817729]
[1739981289666,0.07441343,2706.6,2706.5,5.09771956]
[1739981290896,0.07441343,2706.6,2706.5,5.06077729]
[1739981292395,0.07441343,2706.6,2706.5,5.09771747]
[1739981292804,0.07441343,2706.6,2706.5,7.46771747]
[1739981292970,0.07441343,2706.6,2706.5,7.43077729]
[1739981294852,0.07441343,2706.6,2706.5,6.63817729]
[1739981295003,0.07441343,2706.6,2706.5,6.0648]
[1739981297447,0.07441343,2706.6,2706.5,2.37]
[1739981297614,0.07441343,2706.6,2706.5,6.0648]
[1739981298164,0.07441343,2706.6,2706.5,6.10174407]
[1739981298870,0.07441343,2706.6,2706.5,3.6948]
[1739981299049,0.07441343,2706.6,2706.5,4.670773]
[1739981299412,0.07441343,2706.6,2706.5,5.458873]
[1739981301479,0.07441343,2706.6,2706.5,4.4829]
[1739981302765,0.07441343,2706.6,2706.5,4.51984179]
[1739981303089,0.07441343,2706.6,2706.5,7.98556733]
[1739981303382,0.07441343,2706.6,2706.5,7.94862554]
[1739981304077,0.07441343,2706.6,2706.5,11.49862554]
[1739981304286,0.07441343,2706.6,2706.5,13.28250546]
[1739981307874,0.07441343,2706.6,2706.5,24.57250546]
[1739981309787,0.07441343,2706.6,2706.5,20.84177992]
[1739981313660,0.07441343,2706.6,2706.5,11.92177992]
[1739981314166,0.07441343,2706.6,2706.5,12.47177992]
[1739981315591,0.07441343,2706.6,2706.5,11.92177992]
[1739981316378,0.07441343,2706.6,2706.5,12.47177992]
[1739981316696,0.07441343,2706.6,2706.5,11.92177992]
[1739981316927,0.07441343,2706.6,2706.5,12.47177992]
[1739981319570,0.07441343,2706.6,2706.5,21.39177992]
[1739981323921,0.7583,2707.5,2707.4,3.69358]
[1739981324085,0.27803163,2708.4,2707.6,3.69325]
[1739981324086,0.8318,2708.1,2707.6,3.69325]
[1739981324288,0.8318,2708.1,2708.0,3.69276]
[1739981324622,0.8318,2708.6,2708.4,3.69221]
[1739981324785,0.8318,2708.6,2708.5,3.69208]
[1739981325324,0.1492918,2708.7,2708.6,3.69194]
[1739981326521,0.1492918,2708.7,2708.5,3.69208]
[1739981326811,0.1492918,2708.7,2708.6,3.69194]
[1739981328432,0.1492918,2708.7,2708.6,10.53998081]
[1739981328714,0.1492918,2708.7,2708.6,10.50306754]
[1739981328922,0.1492918,2708.7,2708.6,7.037342]
[1739981329477,0.1492918,2708.7,2708.6,6.06194]
[1739981332395,0.1492918,2708.7,2708.6,6.87674]
[1739981332679,0.1492918,2708.7,2708.6,6.34694]
[1739981336030,4.6166918,2708.7,2708.6,2.37]
[1739981336179,4.6024918,2708.7,2708.6,2.37]
[1739981336377,1.74010898,2708.7,2708.6,2.37]
[1739981337022,0.9106918,2708.7,2708.6,2.37]
[1739981337207,0.9106918,2708.7,2708.6,6.06194]
[1739981337418,0.1492918,2708.7,2708.6,2.37]
[1739981337607,0.1492918,2708.7,2708.6,6.86254]
[1739981338122,0.1492918,2708.7,2708.6,6.89945212]
[1739981338298,0.1492918,2708.7,2708.6,8.24360333]
[1739981338501,0.1492918,2708.7,2708.6,8.20669121]
[1739981339299,0.1492918,2708.7,2708.6,7.40609121]
[1739981340651,0.1492918,2708.7,2708.6,7.67109121]
[1739981340954,0.1492918,2708.7,2708.6,24.88646473]
[1739981341407,0.1492918,2708.7,2708.6,20.14389121]
[1739981343907,0.1492918,2708.7,2708.6,19.85889121]
[1739981344105,0.1492918,2708.7,2708.6,20.14389121]
[1739981345661,0.1492918,2708.7,2708.6,12.34915121]
[1739981345811,0.1492918,2708.7,2708.6,15.26694]
[1739981346012,0.1492918,2708.7,2708.6,11.575]
[1739981346245,0.1492918,2708.7,2708.6,15.26694]
[1739981346441,0.1492918,2708.7,2708.6,6.34694]
[1739981347110,0.1492918,2708.7,2708.6,6.38385296]
[1739981347458,0.1492918,2708.7,2708.6,15.37051778]
[1739981347760,1.8e-06,2708.7,2708.6,15.88360482]
[1739981347912,1.8e-06,2708.7,2708.6,25.10360482]
[1739981348111,1.8e-06,2708.7,2708.6,25.55399295]
[1739981348356,0.7828,2710.5,2709.9,3.69017]
[1739981348555,0.7828,2710.5,2709.9,3.69009]
[1739981348756,0.7828,2710.5,2709.9,3.69007]
[1739981348959,0.7828,2710.5,2709.9,7.38016]
[1739981349158,0.7828,2710.5,2709.9,3.69007]
[1739981349320,0.7828,2710.5,2710.0,3.68996]
[1739981349521,4.47217,2710.5,2709.8,0.285]
[1739981349718,0.7828,2710.0,2709.8,0.285]
[1739981349973,0.7828,2710.0,2709.6,2.37]
[1739981350644,0.7774,2709.9,2709.6,2.37]
[1739981350822,0.7774,2709.9,2709.7,3.69042]
[1739981351016,0.7774,2709.9,2709.5,0.03690149]
[1739981351221,4.46758,2709.9,2709.4,2.655]
[1739981351666,0.7774,2709.9,2709.4,2.655]
[1739981351830,0.7774,2709.9,2709.5,3.69064]
[1739981352357,0.7774,2709.9,2709.4,2.655]
[1739981352661,0.7774,2709.9,2709.6,3.69049]
[1739981352864,0.7774,2709.9,2709.7,3.69042]
[1739981353060,0.7774,2709.9,2709.8,3.6903]
[1739981353529,0.7774,2709.9,2709.5,3.69064]
[1739981353862,0.7774,2709.9,2709.6,3.69054]
[1739981354059,0.7774,2709.9,2709.4,6.34575]
[1739981354367,0.7774,2709.9,2709.4,3.372735]
[1739981354566,0.7774,2709.9,2709.7,3.69031]
[1739981354957,0.7774,2709.9,2709.6,3.69046]
[1739981355154,0.7774,2709.9,2709.4,6.34576]
[1739981355770,0.7774,2709.9,2709.5,3.69059]
[1739981355927,0.7774,2709.9,2709.6,3.69055]
[1739981356128,0.7774,2709.9,2709.7,3.72733061]
[1739981356368,0.7774,2709.9,2709.5,7.38132]
[1739981356568,0.7774,2709.9,2709.6,3.69057]
[1739981356768,0.7774,2709.9,2709.5,3.69061]
[1739981357286,0.7774,2709.9,2709.4,2.655]
[1739981357579,0.7774,2709.9,2709.5,3.69069]
[1739981357781,0.7774,2709.9,2709.5,3.69065]
[1739981358081,0.7774,2709.9,2709.6,3.69057]
[1739981358580,0.7774,2709.9,2709.4,6.34575]
[1739981358790,0.7774,2709.9,2709.5,3.6907]
[1739981358941,0.7774,2709.9,2709.6,3.69057]
[1739981359598,0.7774,2709.9,2709.5,3.6907]
[1739981359788,0.7774,2709.9,2709.6,0.03690153]
[1739981359944,0.7774,2709.9,2709.8,3.6903]
[1739981360251,0.7774,2709.9,2709.5,4.32517]
[1739981360455,0.8076,2710.4,2709.5,0.63457]
[1739981360667,0.8076,2710.4,2709.7,3.69043]
[1739981360849,0.8076,2710.4,2709.9,3.69006]
[1739981361044,0.8076,2710.4,2710.2,3.68975]
[1739981361561,0.8076,2710.4,2710.1,3.68988]
[1739981361757,0.8076,2710.4,2710.0,6.05994]
[1739981362075,1.257292,2710.4,2710.0,2.37]
[1739981362388,4.45268,2710.2,2710.0,2.37]
[1739981362756,0.7629,2710.2,2710.0,2.37]
[1739981363558,3.6899,2710.1,2710.0,2.37]
[1739981363760,0.7629,2710.2,2710.0,2.37]
[1739981364299,0.7629,2710.2,2709.6,3.69049]
[1739981364669,4.45269,2710.2,2709.5,6.06061]
[1739981364869,3.69009,2710.0,2709.5,2.37]
[1739981365182,0.7857,2709.9,2709.5,2.37]
[1739981365587,4.4759,2709.9,2709.5,2.37]
[1739981365900,0.7857,2709.9,2709.2,2.37]
[1739981366098,3.69039,2709.8,2709.2,2.655]
[1739981366263,3.69039,2709.8,2709.2,6.3461]
[1739981366463,3.69039,2709.8,2709.2,2.69190483]
[1739981366464,0.812,2709.7,2709.2,2.69190483]
[1739981366679,0.812,2709.7,2709.2,2.655]
[1739981366856,0.812,2709.7,2709.2,2.69190811]
[1739981367060,0.812,2709.7,2709.4,3.69076]
[1739981367259,0.812,2709.7,2709.5,3.69062]
[1739981367457,0.812,2709.7,2709.4,3.69076]
[1739981367893,0.812,2709.7,2709.5,3.69071]
[1739981368102,0.8177,2710.2,2709.9,3.6901]
[1739981368405,0.8177,2710.2,2709.5,0.738147]
[1739981368702,4.4981,2710.0,2709.6,0.285]
[1739981369276,8.18822,2710.0,2709.6,0.285]
[1739981369484,1.626822,2710.0,2709.6,0.285]
[1739981370006,0.808,2710.0,2709.6,3.97553]
[1739981370214,0.808,2710.0,2709.6,3.69053]
[1739981370509,0.808,2710.0,2709.8,3.69023]
[1739981370864,3.68928,2710.6,2709.9,3.69017]
[1739981371068,4.49087,2710.7,2710.0,3.72680743]
[1739981371314,5.844846,2710.7,2710.0,3.72680743]
[1739981371463,0.8017,2710.7,2710.0,3.18669743]
[1739981371669,0.8017,2711.3,2710.5,3.68934]
[1739981371968,0.7883,2711.0,2710.3,7.37911]
[1739981372282,0.7883,2710.8,2710.4,0.285]
[1739981372477,1.236021,2710.8,2710.1,11.29]
[1739981372678,4.925051,2710.8,2710.3,0.285]
[1739981372881,0.7883,2710.8,2710.3,0.285]
[1739981373296,0.7883,2710.8,2710.3,3.97453]
[1739981373511,0.7883,2710.8,2710.4,3.72637112]
[1739981373678,0.7883,2710.8,2710.3,0.285]
[1739981373882,0.7883,2710.8,2710.4,3.68944]
[1739981374079,0.7883,2710.8,2710.6,3.6892]
[1739981374297,0.8024,2711.3,2710.5,0.831]
[1739981374639,0.8024,2711.3,2710.7,0.03688933]
[1739981374919,0.8024,2711.3,2711.0,3.6886]
[1739981375286,0.8024,2711.3,2711.1,3.68845]
[1739981375485,0.1492918,2711.4,2711.1,3.68845]
[1739981375894,0.1492918,2711.4,2710.9,7.37738]
[1739981376097,0.1492918,2711.4,2711.0,3.68866]
[1739981376416,0.1492918,2711.4,2711.0,3.00554676]
[1739981376612,0.1492918,2711.4,2711.2,3.68831]
[1739981377115,0.1492918,2711.4,2711.1,3.97351]
[1739981377501,0.1492918,2711.4,2711.1,0.285]
[1739981378218,0.1492918,2711.4,2711.0,2.37]
[1739981378388,0.7769,2711.1,2710.5,2.37]
[1739981378714,0.7769,2710.6,2710.5,2.37]
[1739981378915,7.14580856,2711.3,2710.5,2.37]
[1739981378916,0.7769,2711.2,2710.5,2.607]
[1739981379103,4.4654,2711.2,2710.5,2.607]
[1739981379304,0.7769,2711.2,2710.6,3.6892]
[1739981379620,0.7769,2711.2,2710.8,3.68894]
[1739981379770,0.7769,2711.2,2710.8,3.72582491]
[1739981379975,0.7769,2711.2,2710.8,7.7872674]
[1739981380176,0.9261918,2711.4,2710.8,2.74258249]
[1739981380371,0.9261918,2711.4,2710.9,3.6887]
[1739981380615,0.9261918,2711.4,2710.9,3.68871]
[1739981380783,0.9261918,2711.4,2710.8,6.43145249]
[1739981380989,0.9261918,2711.4,2711.0,3.6886]
[1739981381208,0.9261918,2711.4,2710.9,0.67164525]
[1739981381517,0.9261918,2711.4,2710.9,3.6887]
[1739981381901,0.9261918,2711.4,2711.0,3.68867]
[1739981382229,0.9261918,2711.4,2710.9,3.6887]
[1739981382432,4.6144118,2711.4,2710.8,2.74258249]
[1739981382729,3.68847,2711.2,2710.8,2.37]
[1739981382884,0.7988,2711.1,2710.8,2.37]
[1739981383089,0.9480918,2711.4,2710.8,6.09575519]
[1739981383435,0.9480918,2711.4,2711.1,3.68845]
[1739981383723,0.9480918,2711.4,2710.9,6.05872]
[1739981383926,0.9480918,2711.4,2711.0,4.375722]
[1739981384591,4.6363518,2711.4,2711.0,0.687132]
[1739981384934,0.9480918,2711.4,2711.0,0.687132]
[1739981385733,0.9480918,2711.4,2710.9,6.0588]
[1739981386093,0.9480918,2711.4,2711.0,3.68866]
[1739981386729,0.9480918,2711.4,2711.0,3.68859]
[1739981387291,0.9480918,2711.4,2710.9,9.74741]
[1739981387491,0.9480918,2711.4,2710.9,6.05868]
[1739981387730,0.9480918,2711.4,2711.1,3.68852]
[1739981388031,0.1492918,2711.4,2711.1,3.68852]
[1739981388437,0.1492918,2711.4,2711.1,7.37699]
[1739981388659,0.1492918,2711.4,2711.0,0.605868]
[1739981388859,3.8374318,2711.4,2710.9,2.37]
[1739981389065,0.1492918,2711.4,2710.9,6.0588]
[1739981389921,0.7913,2711.3,2710.9,2.37]
[1739981391136,0.7913,2711.3,2710.9,6.05881]
[1739981392073,0.1492918,2711.4,2711.2,3.68839]
[1739981392228,0.1492918,2711.4,2711.3,0.368839]
[1739981392428,0.1492918,2711.4,2711.0,0.7863]
[1739981392627,0.1492918,2711.4,2710.9,6.0588]